[Event "Titled Tuesday Blitz November 29 Early 2022"]
[White "Moskvin, Anatoly"]
[Black "Gatterer, Florian"]
[WhiteFideId "24199990"]
[BlackFideId "811688"]
[WhiteElo "2079"]
[BlackElo "2218"]
[Result "1/2-1/2"]
[Round "05"]
[TimeControl "180+1"]
[Date "2022.11.30"]
[WhiteClock "0:00:06"]
[BlackClock "0:00:07"]

1. e4 {[%clk 0:03:00]}  c6 {[%clk 0:02:59]} 2. c4 {[%clk 0:03:00]}  d5 {[%clk 0:02:59]} 3. exd5 {[%clk 0:03:01]}  cxd5 {[%clk 0:02:59]} 4. cxd5 {[%clk 0:03:02]}  Nf6 {[%clk 0:02:59]} 5. Nc3 {[%clk 0:03:03]}  Nxd5 {[%clk 0:02:59]} 6. Nf3 {[%clk 0:03:04]}  Nc6 {[%clk 0:02:58]} 7. Bb5 {[%clk 0:03:04]}  g6 {[%clk 0:02:54]} 8. Qa4 {[%clk 0:03:03]}  Nb6 {[%clk 0:02:51]} 9. Bxc6+ {[%clk 0:03:03]}  bxc6 {[%clk 0:02:52]} 10. Qxc6+ {[%clk 0:03:03]}  Bd7 {[%clk 0:02:52]} 11. Qe4 {[%clk 0:03:03]}  Bg7 {[%clk 0:02:49]} 12. O-O {[%clk 0:03:02]}  Rc8 {[%clk 0:02:48]} 13. Re1 {[%clk 0:03:00]}  Bc6 {[%clk 0:02:45]} 14. Qf4 {[%clk 0:02:46]}  O-O {[%clk 0:02:40]} 15. d4 {[%clk 0:02:40]}  Nd5 {[%clk 0:02:39]} 16. Qg3 {[%clk 0:02:32]}  Qb6 {[%clk 0:02:03]} 17. Ne4 {[%clk 0:02:03]}  Nb4 {[%clk 0:01:48]} 18. Re2 {[%clk 0:00:35]}  Bb5 {[%clk 0:01:30]} 19. Rd2 {[%clk 0:00:35]}  Nd3 {[%clk 0:01:13]} 20. Nc3 {[%clk 0:00:34]}  Ba6 {[%clk 0:01:13]} 21. Qh3 {[%clk 0:00:29]}  h6 {[%clk 0:01:06]} 22. Qh4 {[%clk 0:00:16]}  Rfe8 {[%clk 0:00:44]} 23. Qe4 {[%clk 0:00:16]}  Nb4 {[%clk 0:00:36]} 24. a3 {[%clk 0:00:16]}  Bb7 {[%clk 0:00:35]} 25. d5 {[%clk 0:00:10]}  Na6 {[%clk 0:00:30]} 26. Rd1 {[%clk 0:00:05]}  Nc5 {[%clk 0:00:30]} 27. Qh4 {[%clk 0:00:06]}  Nb3 {[%clk 0:00:28]} 28. Bxh6 {[%clk 0:00:06]}  Nxa1 {[%clk 0:00:27]} 29. Bxg7 {[%clk 0:00:06]}  Kxg7 {[%clk 0:00:25]} 30. Rxa1 {[%clk 0:00:06]}  Rh8 {[%clk 0:00:23]} 31. Qd4+ {[%clk 0:00:07]}  Qxd4 {[%clk 0:00:21]} 32. Nxd4 {[%clk 0:00:08]}  Rcd8 {[%clk 0:00:21]} 33. Re1 {[%clk 0:00:06]}  Bxd5 {[%clk 0:00:18]} 34. Rxe7 {[%clk 0:00:04]}  Kf6 {[%clk 0:00:18]} 35. Rxa7 {[%clk 0:00:04]}  Be6 {[%clk 0:00:16]} 36. Nxe6 {[%clk 0:00:04]}  Kxe6 {[%clk 0:00:16]} 37. g3 {[%clk 0:00:05]}  Rd6 {[%clk 0:00:16]} 38. Rb7 {[%clk 0:00:05]}  Rhd8 {[%clk 0:00:16]} 39. Kg2 {[%clk 0:00:05]}  Rd2 {[%clk 0:00:15]} 40. Ne4 {[%clk 0:00:05]}  R2d4 {[%clk 0:00:13]} 41. Ng5+ {[%clk 0:00:04]}  Kf6 {[%clk 0:00:12]} 42. Nxf7 {[%clk 0:00:05]}  R8d5 {[%clk 0:00:12]} 43. Nh6 {[%clk 0:00:03]}  Kg5 {[%clk 0:00:11]} 44. Nf7+ {[%clk 0:00:03]}  Kf6 {[%clk 0:00:11]} 45. h4 {[%clk 0:00:04]}  Rd7 {[%clk 0:00:09]} 46. Rxd7 {[%clk 0:00:04]}  Rxd7 {[%clk 0:00:09]} 47. Ng5 {[%clk 0:00:05]}  Rb7 {[%clk 0:00:08]} 48. b4 {[%clk 0:00:05]}  Ra7 {[%clk 0:00:08]} 49. Nh3 {[%clk 0:00:03]}  Rxa3 {[%clk 0:00:08]} 50. Nf4 {[%clk 0:00:04]}  Rb3 {[%clk 0:00:07]} 51. Kh3 {[%clk 0:00:04]}  Kf5 {[%clk 0:00:08]} 52. Kg2 {[%clk 0:00:04]}  Rxb4 {[%clk 0:00:08]} 53. Kf3 {[%clk 0:00:05]}  Rb3+ {[%clk 0:00:08]} 54. Kg2 {[%clk 0:00:05]}  Ra3 {[%clk 0:00:08]} 55. Ne2 {[%clk 0:00:06]}  Ra2 {[%clk 0:00:08]} 56. Nd4+ {[%clk 0:00:06]}  Ke4 {[%clk 0:00:08]} 57. Nf3 {[%clk 0:00:07]}  Kf5 {[%clk 0:00:08]} 58. Ng5 {[%clk 0:00:05]}  Rb2 {[%clk 0:00:07]} 59. Nf3 {[%clk 0:00:06]}  Ra2 {[%clk 0:00:07]} 60. Nd4+ {[%clk 0:00:06]} 1/2-1/2


[Site "https://www.chess.com"]

[Event "Titled Tuesday Blitz November 29 Early 2022"]
[White "Mrudul Dehankar"]
[Black "Hrabinska, Myroslava"]
[WhiteFideId "25096990"]
[BlackFideId "14109190"]
[WhiteElo "2068"]
[BlackElo "2171"]
[Result "0-1"]
[Round "05"]
[TimeControl "180+1"]
[Date "2022.11.30"]
[WhiteClock "0:00:02"]
[BlackClock "0:00:16"]

1. e4 {[%clk 0:03:00]}  c5 {[%clk 0:02:59]} 2. Nf3 {[%clk 0:03:00]}  e6 {[%clk 0:02:58]} 3. d4 {[%clk 0:03:00]}  cxd4 {[%clk 0:02:58]} 4. Nxd4 {[%clk 0:03:01]}  a6 {[%clk 0:02:59]} 5. Bd3 {[%clk 0:03:01]}  Nc6 {[%clk 0:02:56]} 6. Nxc6 {[%clk 0:03:00]}  dxc6 {[%clk 0:02:56]} 7. e5 {[%clk 0:02:58]}  Qa5+ {[%clk 0:02:52]} 8. Nc3 {[%clk 0:02:44]}  Qxe5+ {[%clk 0:02:51]} 9. Ne2 {[%clk 0:02:44]}  Nf6 {[%clk 0:02:46]} 10. c3 {[%clk 0:02:42]}  Qc7 {[%clk 0:02:03]} 11. O-O {[%clk 0:02:34]}  Bd6 {[%clk 0:02:02]} 12. h3 {[%clk 0:02:32]}  O-O {[%clk 0:02:00]} 13. Qc2 {[%clk 0:02:27]}  h6 {[%clk 0:01:45]} 14. c4 {[%clk 0:02:18]}  c5 {[%clk 0:01:27]} 15. Bd2 {[%clk 0:02:16]}  Bd7 {[%clk 0:01:18]} 16. Bc3 {[%clk 0:02:12]}  Be5 {[%clk 0:01:18]} 17. Bd2 {[%clk 0:02:09]}  Bc6 {[%clk 0:01:17]} 18. f4 {[%clk 0:02:06]}  Bd6 {[%clk 0:01:13]} 19. Be3 {[%clk 0:02:07]}  Rad8 {[%clk 0:01:06]} 20. Nc3 {[%clk 0:02:05]}  b6 {[%clk 0:01:04]} 21. Rad1 {[%clk 0:01:46]}  Qb7 {[%clk 0:01:03]} 22. a4 {[%clk 0:01:37]}  Be7 {[%clk 0:00:55]} 23. Rf2 {[%clk 0:01:31]}  Rd7 {[%clk 0:00:50]} 24. Rfd2 {[%clk 0:01:32]}  Rfd8 {[%clk 0:00:50]} 25. Bf2 {[%clk 0:01:15]}  Bxg2 {[%clk 0:00:45]} 26. Be3 {[%clk 0:00:53]}  Bxh3 {[%clk 0:00:43]} 27. Ne4 {[%clk 0:00:48]}  Bg4 {[%clk 0:00:32]} 28. Nxf6+ {[%clk 0:00:31]}  Bxf6 {[%clk 0:00:33]} 29. Bh7+ {[%clk 0:00:28]}  Kh8 {[%clk 0:00:31]} 30. Rxd7 {[%clk 0:00:29]}  Rxd7 {[%clk 0:00:31]} 31. Rxd7 {[%clk 0:00:29]}  Qxd7 {[%clk 0:00:31]} 32. Be4 {[%clk 0:00:30]}  Bd4 {[%clk 0:00:29]} 33. Qd3 {[%clk 0:00:26]}  Bxe3+ {[%clk 0:00:28]} 34. Qxe3 {[%clk 0:00:25]}  Qd4 {[%clk 0:00:28]} 35. Qxd4 {[%clk 0:00:22]}  cxd4 {[%clk 0:00:29]} 36. b4 {[%clk 0:00:20]}  Kg8 {[%clk 0:00:22]} 37. c5 {[%clk 0:00:19]}  bxc5 {[%clk 0:00:21]} 38. bxc5 {[%clk 0:00:20]}  Kf8 {[%clk 0:00:19]} 39. Kf2 {[%clk 0:00:18]}  Ke7 {[%clk 0:00:19]} 40. Bb7 {[%clk 0:00:18]}  a5 {[%clk 0:00:18]} 41. Bc6 {[%clk 0:00:16]}  Bd1 {[%clk 0:00:17]} 42. Bb5 {[%clk 0:00:13]}  f6 {[%clk 0:00:17]} 43. Ke1 {[%clk 0:00:13]}  Bb3 {[%clk 0:00:16]} 44. Kd2 {[%clk 0:00:13]}  e5 {[%clk 0:00:16]} 45. fxe5 {[%clk 0:00:12]}  fxe5 {[%clk 0:00:16]} 46. Kd3 {[%clk 0:00:12]}  Bd5 {[%clk 0:00:16]} 47. Ba6 {[%clk 0:00:08]}  g5 {[%clk 0:00:16]} 48. Bc8 {[%clk 0:00:03]}  Bc6 {[%clk 0:00:16]} 49. Bg4 {[%clk 0:00:02]}  Bxa4 {[%clk 0:00:15]} 50. Ke4 {[%clk 0:00:02]}  Kf6 {[%clk 0:00:15]} 51. Kd5 {[%clk 0:00:01]}  d3 {[%clk 0:00:15]} 52. c6 {[%clk 0:00:01]}  Bxc6+ {[%clk 0:00:15]} 53. Kxc6 {[%clk 0:00:02]}  e4 {[%clk 0:00:15]} 54. Kd5 {[%clk 0:00:02]}  e3 {[%clk 0:00:15]} 55. Kd4 {[%clk 0:00:02]}  e2 {[%clk 0:00:16]} 0-1


[Site "https://www.chess.com"]

[Event "Titled Tuesday Blitz November 29 Early 2022"]
[White "Omariev, Maksim"]
[Black "Arbunic Castro, Giovanna"]
[WhiteFideId "4193423"]
[BlackFideId "3400549"]
[WhiteElo "2420"]
[BlackElo "1936"]
[Result "1-0"]
[Round "05"]
[TimeControl "180+1"]
[Date "2022.11.30"]
[WhiteClock "0:00:13"]
[BlackClock "0:00:50"]

1. g4 {[%clk 0:01:43]}  d5 {[%clk 0:02:56]} 2. Bg2 {[%clk 0:01:37]}  c6 {[%clk 0:02:55]} 3. h3 {[%clk 0:01:32]}  e5 {[%clk 0:02:53]} 4. d4 {[%clk 0:01:32]}  f6 {[%clk 0:02:50]} 5. dxe5 {[%clk 0:01:14]}  fxe5 {[%clk 0:02:49]} 6. Nf3 {[%clk 0:01:15]}  Qd6 {[%clk 0:02:43]} 7. c4 {[%clk 0:01:10]}  Nf6 {[%clk 0:02:40]} 8. g5 {[%clk 0:00:49]}  Ne4 {[%clk 0:02:36]} 9. Nbd2 {[%clk 0:00:49]}  Bf5 {[%clk 0:02:10]} 10. Nh4 {[%clk 0:00:45]}  Bg6 {[%clk 0:01:57]} 11. Nxg6 {[%clk 0:00:45]}  Qxg6 {[%clk 0:01:56]} 12. cxd5 {[%clk 0:00:40]}  cxd5 {[%clk 0:01:54]} 13. Nxe4 {[%clk 0:00:41]}  dxe4 {[%clk 0:01:53]} 14. Qa4+ {[%clk 0:00:41]}  Nc6 {[%clk 0:01:51]} 15. Bd2 {[%clk 0:00:25]}  Bc5 {[%clk 0:01:29]} 16. Bxe4 {[%clk 0:00:22]}  Qf7 {[%clk 0:01:19]} 17. Bxc6+ {[%clk 0:00:20]}  Kf8 {[%clk 0:01:19]} 18. Bf3 {[%clk 0:00:17]}  e4 {[%clk 0:01:12]} 19. Qxe4 {[%clk 0:00:16]}  Re8 {[%clk 0:01:11]} 20. Qxb7 {[%clk 0:00:13]}  Re7 {[%clk 0:00:51]} 21. Qc8+ {[%clk 0:00:12]}  Re8 {[%clk 0:00:50]} 22. Qxc5+ {[%clk 0:00:13]} 1-0


[Site "https://www.chess.com"]

[Event "Titled Tuesday Blitz November 29 Early 2022"]
[White "Palacio,Igor Da Paz"]
[Black "Ovezdurdyyeva, Jemal"]
[WhiteFideId "2121140"]
[BlackFideId "14001888"]
[WhiteElo "2126"]
[BlackElo "1961"]
[Result "1-0"]
[Round "05"]
[TimeControl "180+1"]
[Date "2022.11.30"]
[WhiteClock "0:00:03"]
[BlackClock "0:00:57"]

1. e4 {[%clk 0:02:35]}  d6 {[%clk 0:02:59]} 2. d4 {[%clk 0:02:35]}  Nf6 {[%clk 0:02:59]} 3. Nc3 {[%clk 0:02:35]}  g6 {[%clk 0:03:00]} 4. Nf3 {[%clk 0:02:34]}  c6 {[%clk 0:03:00]} 5. Be2 {[%clk 0:02:33]}  b5 {[%clk 0:02:59]} 6. a3 {[%clk 0:02:33]}  Bg7 {[%clk 0:03:00]} 7. O-O {[%clk 0:02:29]}  O-O {[%clk 0:02:58]} 8. Re1 {[%clk 0:02:30]}  a6 {[%clk 0:02:58]} 9. Bf1 {[%clk 0:02:29]}  Re8 {[%clk 0:02:48]} 10. g3 {[%clk 0:02:24]}  e5 {[%clk 0:02:47]} 11. dxe5 {[%clk 0:02:23]}  dxe5 {[%clk 0:02:44]} 12. Qxd8 {[%clk 0:02:23]}  Rxd8 {[%clk 0:02:43]} 13. Nxe5 {[%clk 0:02:23]}  Re8 {[%clk 0:02:34]} 14. f4 {[%clk 0:02:15]}  c5 {[%clk 0:02:27]} 15. Bg2 {[%clk 0:02:12]}  Bb7 {[%clk 0:02:27]} 16. Be3 {[%clk 0:01:56]}  Nbd7 {[%clk 0:02:23]} 17. Nxd7 {[%clk 0:01:51]}  Nxd7 {[%clk 0:02:24]} 18. e5 {[%clk 0:01:44]}  Bxg2 {[%clk 0:02:22]} 19. Kxg2 {[%clk 0:01:45]}  Rac8 {[%clk 0:02:22]} 20. Rad1 {[%clk 0:01:40]}  Re7 {[%clk 0:02:19]} 21. Nd5 {[%clk 0:01:34]}  Re6 {[%clk 0:02:17]} 22. b3 {[%clk 0:01:22]}  f6 {[%clk 0:02:10]} 23. exf6 {[%clk 0:01:06]}  Nxf6 {[%clk 0:02:10]} 24. Nxf6+ {[%clk 0:00:45]}  Bxf6 {[%clk 0:02:11]} 25. Kf3 {[%clk 0:00:21]}  Kf7 {[%clk 0:02:08]} 26. Rd7+ {[%clk 0:00:20]}  Be7 {[%clk 0:02:08]} 27. Red1 {[%clk 0:00:17]}  h5 {[%clk 0:01:59]} 28. R1d5 {[%clk 0:00:15]}  Kf6 {[%clk 0:01:56]} 29. Rb7 {[%clk 0:00:09]}  c4 {[%clk 0:01:53]} 30. b4 {[%clk 0:00:08]}  Rcc6 {[%clk 0:01:53]} 31. Rdd7 {[%clk 0:00:07]}  Rcd6 {[%clk 0:01:42]} 32. Bd4+ {[%clk 0:00:04]}  Kf7 {[%clk 0:01:41]} 33. Be5 {[%clk 0:00:03]}  Rxd7 {[%clk 0:01:37]} 34. Rxd7 {[%clk 0:00:03]}  a5 {[%clk 0:01:37]} 35. bxa5 {[%clk 0:00:03]}  Ra6 {[%clk 0:01:37]} 36. Bc3 {[%clk 0:00:02]}  Ke6 {[%clk 0:01:28]} 37. Rb7 {[%clk 0:00:02]}  Bxa3 {[%clk 0:01:28]} 38. Rxb5 {[%clk 0:00:02]}  Ra7 {[%clk 0:01:23]} 39. Ke4 {[%clk 0:00:02]}  Rc7 {[%clk 0:01:19]} 40. Bd4 {[%clk 0:00:01]}  c3 {[%clk 0:01:09]} 41. Rb6+ {[%clk 0:00:02]}  Kf7 {[%clk 0:01:08]} 42. Rb5 {[%clk 0:00:02]}  Re7+ {[%clk 0:01:02]} 43. Kd3 {[%clk 0:00:01]}  Bb2 {[%clk 0:01:01]} 44. a6 {[%clk 0:00:01]}  Re8 {[%clk 0:00:57]} 45. a7 {[%clk 0:00:02]}  Ra8 {[%clk 0:00:57]} 46. Rb8 {[%clk 0:00:02]}  Rxa7 {[%clk 0:00:57]} 47. Bxa7 {[%clk 0:00:03]} 1-0


[Site "https://www.chess.com"]

[Event "Titled Tuesday Blitz November 29 Early 2022"]
[White "Petrovic, Aleksa"]
[Black "Putri, Regita Desyari"]
[WhiteFideId "967629"]
[BlackFideId "7109083"]
[WhiteElo "2224"]
[BlackElo "1930"]
[Result "1-0"]
[Round "05"]
[TimeControl "180+1"]
[Date "2022.11.30"]
[WhiteClock "0:02:31"]
[BlackClock "0:01:10"]

1. d4 {[%clk 0:03:00]}  Nf6 {[%clk 0:02:55]} 2. c4 {[%clk 0:03:01]}  g6 {[%clk 0:02:48]} 3. Nc3 {[%clk 0:03:00]}  d5 {[%clk 0:02:48]} 4. cxd5 {[%clk 0:03:00]}  Nxd5 {[%clk 0:02:48]} 5. e4 {[%clk 0:03:00]}  Nxc3 {[%clk 0:02:48]} 6. bxc3 {[%clk 0:03:00]}  Bg7 {[%clk 0:02:47]} 7. Nf3 {[%clk 0:03:00]}  O-O {[%clk 0:02:38]} 8. Be2 {[%clk 0:02:59]}  c5 {[%clk 0:02:38]} 9. Rb1 {[%clk 0:02:59]}  Nc6 {[%clk 0:02:37]} 10. d5 {[%clk 0:02:58]}  Bxc3+ {[%clk 0:02:24]} 11. Bd2 {[%clk 0:02:57]}  Bxd2+ {[%clk 0:02:24]} 12. Qxd2 {[%clk 0:02:58]}  Nd4 {[%clk 0:02:15]} 13. Nxd4 {[%clk 0:02:58]}  cxd4 {[%clk 0:02:16]} 14. Qxd4 {[%clk 0:02:59]}  Qa5+ {[%clk 0:02:12]} 15. Qd2 {[%clk 0:02:59]}  Qxd2+ {[%clk 0:02:12]} 16. Kxd2 {[%clk 0:03:00]}  Rd8 {[%clk 0:02:02]} 17. Ke3 {[%clk 0:02:57]}  e6 {[%clk 0:01:51]} 18. dxe6 {[%clk 0:02:55]}  fxe6 {[%clk 0:01:42]} 19. Rhc1 {[%clk 0:02:48]}  b6 {[%clk 0:01:13]} 20. Rc7 {[%clk 0:02:47]}  Rd7 {[%clk 0:01:10]} 21. Rbc1 {[%clk 0:02:36]}  Rd8 {[%clk 0:01:10]} 22. Re7 {[%clk 0:02:31]} 1-0


[Site "https://www.chess.com"]

[Event "Titled Tuesday Blitz November 29 Early 2022"]
[White "Poltorak, Sebastian"]
[Black "Yuan, Qingyu"]
[WhiteFideId "1199498"]
[BlackFideId "8609772"]
[WhiteElo "2196"]
[BlackElo "2359"]
[Result "0-1"]
[Round "05"]
[TimeControl "180+1"]
[Date "2022.11.30"]
[WhiteClock "0:00:44"]
[BlackClock "0:01:20"]

1. e4 {[%clk 0:03:00]}  e5 {[%clk 0:02:58]} 2. Nc3 {[%clk 0:02:59]}  Nf6 {[%clk 0:02:58]} 3. g3 {[%clk 0:02:57]}  d5 {[%clk 0:02:58]} 4. exd5 {[%clk 0:02:57]}  Nxd5 {[%clk 0:02:58]} 5. Bg2 {[%clk 0:02:57]}  Nxc3 {[%clk 0:02:59]} 6. bxc3 {[%clk 0:02:57]}  Nc6 {[%clk 0:02:59]} 7. Ne2 {[%clk 0:02:58]}  Bc5 {[%clk 0:02:59]} 8. O-O {[%clk 0:02:58]}  O-O {[%clk 0:02:59]} 9. Rb1 {[%clk 0:02:57]}  Bb6 {[%clk 0:02:48]} 10. d3 {[%clk 0:02:47]}  Bf5 {[%clk 0:02:39]} 11. Be3 {[%clk 0:02:39]}  Qd7 {[%clk 0:02:30]} 12. Qd2 {[%clk 0:02:36]}  Rfe8 {[%clk 0:02:22]} 13. Rbe1 {[%clk 0:02:27]}  e4 {[%clk 0:02:11]} 14. dxe4 {[%clk 0:01:58]}  Qxd2 {[%clk 0:02:11]} 15. Bxd2 {[%clk 0:01:59]}  Bxe4 {[%clk 0:02:12]} 16. Bxe4 {[%clk 0:01:50]}  Rxe4 {[%clk 0:02:13]} 17. Nf4 {[%clk 0:01:32]}  Ra4 {[%clk 0:02:06]} 18. Ra1 {[%clk 0:01:25]}  Rd8 {[%clk 0:02:00]} 19. Nd3 {[%clk 0:01:24]}  Na5 {[%clk 0:01:53]} 20. Rfe1 {[%clk 0:01:21]}  Nc4 {[%clk 0:01:51]} 21. Bg5 {[%clk 0:01:20]}  f6 {[%clk 0:01:51]} 22. Bf4 {[%clk 0:01:20]}  Kf7 {[%clk 0:01:42]} 23. Re2 {[%clk 0:01:13]}  Na3 {[%clk 0:01:36]} 24. Rae1 {[%clk 0:01:10]}  Rd7 {[%clk 0:01:35]} 25. Nb4 {[%clk 0:01:08]}  Nb5 {[%clk 0:01:31]} 26. Bd2 {[%clk 0:00:58]}  a5 {[%clk 0:01:29]} 27. Nd3 {[%clk 0:00:58]}  Rxa2 {[%clk 0:01:29]} 28. Rb1 {[%clk 0:00:54]}  Rxc2 {[%clk 0:01:21]} 29. Rxb5 {[%clk 0:00:44]}  Rxd3 {[%clk 0:01:20]} 0-1


[Site "https://www.chess.com"]

[Event "Titled Tuesday Blitz November 29 Early 2022"]
[White "Przybylski, Wojciech"]
[Black "Weetik, Vjacheslav"]
[WhiteFideId "1117599"]
[BlackFideId "4153472"]
[WhiteElo "2221"]
[BlackElo "2469"]
[Result "1-0"]
[Round "05"]
[TimeControl "180+1"]
[Date "2022.11.30"]
[WhiteClock "0:00:24"]
[BlackClock "0:00:11"]

1. e4 {[%clk 0:03:00]}  c5 {[%clk 0:02:56]} 2. Nf3 {[%clk 0:02:56]}  Nc6 {[%clk 0:02:56]} 3. Bb5 {[%clk 0:02:48]}  e6 {[%clk 0:02:49]} 4. b3 {[%clk 0:02:46]}  Nge7 {[%clk 0:02:47]} 5. O-O {[%clk 0:02:45]}  a6 {[%clk 0:02:42]} 6. Bxc6 {[%clk 0:02:45]}  Nxc6 {[%clk 0:02:42]} 7. Bb2 {[%clk 0:02:46]}  b5 {[%clk 0:02:34]} 8. c4 {[%clk 0:02:44]}  Bb7 {[%clk 0:02:28]} 9. d3 {[%clk 0:02:34]}  Qc7 {[%clk 0:01:48]} 10. Na3 {[%clk 0:02:32]}  b4 {[%clk 0:01:11]} 11. Nc2 {[%clk 0:02:31]}  e5 {[%clk 0:01:12]} 12. Ne3 {[%clk 0:02:26]}  Nd4 {[%clk 0:01:12]} 13. Bxd4 {[%clk 0:02:25]}  cxd4 {[%clk 0:01:09]} 14. Nd5 {[%clk 0:02:17]}  Qd6 {[%clk 0:01:02]} 15. c5 {[%clk 0:01:59]}  Qc6 {[%clk 0:00:52]} 16. Nxe5 {[%clk 0:01:57]}  Qc8 {[%clk 0:00:41]} 17. Nb6 {[%clk 0:01:54]}  Qxc5 {[%clk 0:00:40]} 18. Nexd7 {[%clk 0:01:45]}  Qb5 {[%clk 0:00:40]} 19. Nxa8 {[%clk 0:01:18]}  Bxa8 {[%clk 0:00:33]} 20. Nxf8 {[%clk 0:00:39]}  Kxf8 {[%clk 0:00:33]} 21. Qg4 {[%clk 0:00:35]}  g6 {[%clk 0:00:32]} 22. f4 {[%clk 0:00:31]}  Kg7 {[%clk 0:00:32]} 23. f5 {[%clk 0:00:31]}  Qe5 {[%clk 0:00:10]} 24. f6+ {[%clk 0:00:29]}  Kh6 {[%clk 0:00:11]} 25. Rf4 {[%clk 0:00:24]} 1-0


[Site "https://www.chess.com"]

[Event "Titled Tuesday Blitz November 29 Early 2022"]
[White "Quinones Garcia, Santiago"]
[Black "Mitrovic, Darko R"]
[WhiteFideId "4408497"]
[BlackFideId "927023"]
[WhiteElo "2249"]
[BlackElo "2150"]
[Result "1-0"]
[Round "05"]
[TimeControl "180+1"]
[Date "2022.11.30"]
[WhiteClock "0:00:43"]
[BlackClock "0:00:02"]

1. d4 {[%clk 0:02:58]}  Nf6 {[%clk 0:02:58]} 2. c4 {[%clk 0:02:58]}  e6 {[%clk 0:02:57]} 3. Nc3 {[%clk 0:02:58]}  Bb4 {[%clk 0:02:57]} 4. Qc2 {[%clk 0:02:57]}  c5 {[%clk 0:02:57]} 5. e3 {[%clk 0:02:56]}  Nc6 {[%clk 0:02:53]} 6. Nf3 {[%clk 0:02:56]}  cxd4 {[%clk 0:02:49]} 7. exd4 {[%clk 0:02:56]}  d5 {[%clk 0:02:48]} 8. cxd5 {[%clk 0:02:54]}  Nxd5 {[%clk 0:02:48]} 9. Bd3 {[%clk 0:02:52]}  Be7 {[%clk 0:02:04]} 10. O-O {[%clk 0:02:48]}  Ndb4 {[%clk 0:02:02]} 11. Qe2 {[%clk 0:02:46]}  Nxd3 {[%clk 0:02:01]} 12. Qxd3 {[%clk 0:02:47]}  O-O {[%clk 0:01:57]} 13. d5 {[%clk 0:02:43]}  Nb4 {[%clk 0:01:52]} 14. Qe2 {[%clk 0:02:31]}  Nxd5 {[%clk 0:01:50]} 15. Nxd5 {[%clk 0:02:24]}  exd5 {[%clk 0:01:50]} 16. Rd1 {[%clk 0:02:25]}  Bf6 {[%clk 0:01:41]} 17. h3 {[%clk 0:02:08]}  Re8 {[%clk 0:01:30]} 18. Qd3 {[%clk 0:02:07]}  Be6 {[%clk 0:01:29]} 19. Be3 {[%clk 0:02:06]}  Qd7 {[%clk 0:01:17]} 20. Rab1 {[%clk 0:02:04]}  Bf5 {[%clk 0:00:57]} 21. Qd2 {[%clk 0:01:41]}  Bxb1 {[%clk 0:00:56]} 22. Rxb1 {[%clk 0:01:40]}  b6 {[%clk 0:00:52]} 23. Rd1 {[%clk 0:01:39]}  Rad8 {[%clk 0:00:51]} 24. b3 {[%clk 0:01:26]}  h6 {[%clk 0:00:46]} 25. Nd4 {[%clk 0:01:25]}  Bxd4 {[%clk 0:00:38]} 26. Bxd4 {[%clk 0:01:26]}  Qe6 {[%clk 0:00:34]} 27. Qc3 {[%clk 0:01:25]}  f6 {[%clk 0:00:25]} 28. Kh2 {[%clk 0:01:25]}  Rc8 {[%clk 0:00:20]} 29. Qg3 {[%clk 0:01:23]}  Rc2 {[%clk 0:00:15]} 30. a4 {[%clk 0:01:19]}  Kf7 {[%clk 0:00:12]} 31. Rd3 {[%clk 0:01:18]}  Re2 {[%clk 0:00:09]} 32. Rf3 {[%clk 0:01:15]}  Re4 {[%clk 0:00:08]} 33. Rd3 {[%clk 0:01:13]}  Rd8 {[%clk 0:00:07]} 34. Qc7+ {[%clk 0:01:03]}  Qe7 {[%clk 0:00:05]} 35. Qc2 {[%clk 0:01:01]}  Qd6+ {[%clk 0:00:03]} 36. g3 {[%clk 0:01:00]}  Qe6 {[%clk 0:00:03]} 37. Qc7+ {[%clk 0:00:57]}  Qe7 {[%clk 0:00:03]} 38. Qc6 {[%clk 0:00:58]}  Qe6 {[%clk 0:00:02]} 39. Qb7+ {[%clk 0:00:54]}  Rd7 {[%clk 0:00:03]} 40. Qc8 {[%clk 0:00:53]}  Re2 {[%clk 0:00:03]} 41. Rf3 {[%clk 0:00:52]}  Re7 {[%clk 0:00:02]} 42. Qh8 {[%clk 0:00:50]}  Qe4 {[%clk 0:00:02]} 43. Rf4 {[%clk 0:00:44]}  Qg6 {[%clk 0:00:02]} 44. Qd8 {[%clk 0:00:43]} 1-0


[Site "https://www.chess.com"]